fUST/lending_fUST_20251229
["ID","MTS","AMOUNT","RATE_DAILY","PERIOD"]
[399961314,1766946059764,1208.33,0.00030134,120]
[399961315,1766946060005,1208.33,0.00030134,120]
[399961316,1766946060270,1208.33,0.00030134,120]
[399961317,1766946060505,1208.33,0.00030134,120]
[399961318,1766946060742,1208.33,0.00030134,120]
[399961319,1766946060986,1208.33,0.00030134,120]
[399961320,1766946061215,1208.33,0.00030134,120]
[399961321,1766946061451,1208.33,0.00030134,120]
[399961322,1766946061703,1208.41,0.00030134,120]
[399961337,1766946079390,200.0,0.00028752,120]
[399961338,1766946079429,389.83131248,0.00030134,120]
[399961339,1766946081496,200.0,0.00028752,120]
[399961340,1766946081842,497.64042469,0.00030134,120]
[399961341,1766946082077,285.93484304,0.00030134,120]
[399961342,1766946082682,414.34665682,0.00030134,120]
[399961343,1766946084381,200.0,0.00028752,120]
[399961361,1766946087484,203.92655526,0.00030134,120]
[399961362,1766946089899,171.82588693,0.00030134,120]
[399961363,1766946090722,196.05295985,0.00030134,120]
[399961367,1766946094229,242.14018034,0.00030134,120]
[399961368,1766946095263,246.7692842,0.00030134,120]
[399961369,1766946099250,413.16365299,0.00030134,120]
[399961370,1766946100024,541.41867779,0.00030134,120]
[399961371,1766946101967,262.67608274,0.00030134,120]
[399961372,1766946102112,296.11959483,0.00030134,120]
[399961373,1766946103020,436.33758151,0.00030134,120]
[399961374,1766946103158,334.07729983,0.00030134,120]
[399961375,1766946103499,207.71407135,0.00030134,120]
[399961380,1766946105332,461.57482947,0.00030134,120]
[399961381,1766946105374,215.68403177,0.00030134,120]
[399961388,1766946108634,406.16129128,0.00030134,120]
[399961391,1766946109468,471.11663573,0.00030134,120]
[399961393,1766946109863,168.44648552,0.00030134,120]
[399961394,1766946110356,447.15668705,0.00030134,120]
[399961396,1766946111387,330.600112,0.00030134,120]
[399961397,1766946112043,157.76802666,0.00030134,120]
[399961401,1766946113353,432.90613097,0.00030134,120]
[399961402,1766946113835,460.63388249,0.00030134,120]
[399961406,1766946116666,160.57934504,0.00030134,120]
[399961407,1766946117192,267.13822899,0.00030134,120]
[399961412,1766946118885,446.16626421,0.00030134,120]
[399961413,1766946119026,497.71228405,0.00030134,120]
[399961414,1766946121205,538.18576918,0.00030134,120]
[399961415,1766946121711,434.3563925,0.00030134,120]
[399961416,1766946122166,238.41030365,0.00030134,120]
[399961419,1766946123639,465.88358547,0.00030134,120]
[399961420,1766946123721,299.32563147,0.00030134,120]
[399961421,1766946125601,406.34184659,0.00030134,120]
[399961423,1766946125970,311.9943589,0.00030134,120]
[399961425,1766946126413,220.90680034,0.00030134,120]
[399961426,1766946128223,415.85054976,0.00030134,120]
[399961427,1766946128582,325.14015373,0.00030134,120]
[399961428,1766946128787,352.26015689,0.00030134,120]
[399961429,1766946130019,467.36612176,0.00030134,120]
[399961430,1766946130425,277.0359614,0.00030134,120]
[399961432,1766946130850,240.13780726,0.00030134,120]
[399961434,1766946132114,459.75112982,0.00030134,120]
[399961435,1766946132303,285.15234621,0.00030134,120]
[399961436,1766946132589,488.60197841,0.00030134,120]
[399961437,1766946132713,384.42426307,0.00030134,120]
[399961438,1766946132935,394.60210087,0.00030134,120]
[399961440,1766946134731,238.66514179,0.00030134,120]
[399961441,1766946135217,623.36468103,0.00030134,120]
[399961442,1766946137855,241.92598492,0.00030134,120]
[399961447,1766946140540,219.07710562,0.00030134,120]
[399961448,1766946141544,496.68002159,0.00030134,120]
[399961450,1766946142983,236.50268082,0.00030134,120]
[399961453,1766946148036,500.0,0.00030134,120]
[399961454,1766946148232,2107.85,0.00030134,120]
[399961455,1766946148459,2107.85,0.00030134,120]
[399961456,1766946148503,281.95685953,0.00030134,120]
[399961457,1766946148694,2107.85,0.00030134,120]
[399961458,1766946148725,181.9087663,0.00030134,120]
[399961459,1766946148926,2107.85,0.00030134,120]
[399961460,1766946149159,2107.85,0.00030134,120]
[399961461,1766946149391,2107.85,0.00030134,120]
[399961462,1766946149630,2107.85,0.00030134,120]
[399961463,1766946149896,161.5417406,0.00030134,120]
[399961464,1766946149994,2107.85,0.00030134,120]
[399961465,1766946150240,2107.85,0.00030134,120]
[399961466,1766946150517,2107.85,0.00030134,120]
[399961467,1766946150755,2107.85,0.00030134,120]
[399961468,1766946150972,544.88914211,0.00030134,120]
[399961469,1766946151012,2107.85,0.00030134,120]
[399961470,1766946151235,2107.85,0.00030134,120]
[399961471,1766946151471,2107.85,0.00030134,120]
[399961472,1766946151720,2107.85,0.00030134,120]
[399961473,1766946151948,2107.85,0.00030134,120]
[399961474,1766946152197,2107.85,0.00030134,120]
[399961475,1766946152633,2107.85,0.00030134,120]
[399961476,1766946152740,2107.85,0.00030134,120]
[399961477,1766946153035,2107.85,0.00030134,120]
[399961478,1766946153274,2107.85,0.00030134,120]
[399961479,1766946153317,189.47155709,0.00030134,120]
[399961480,1766946153353,500.0,0.00030134,120]
[399961481,1766946153553,259.2460613,0.00030134,120]
[399961482,1766946153871,2107.85,0.00030134,120]
[399961483,1766946154123,2107.85,0.00030134,120]
[399961484,1766946154357,2107.88368311,0.00030134,120]
[399961485,1766946155517,318.84396182,0.00030134,120]
[399961486,1766946155820,208.47921673,0.00030134,120]
[399961487,1766946156767,199.82578944,0.00030134,120]
[399961488,1766946157861,362.88383677,0.00030134,120]
[399961489,1766946158831,200.0,0.00030134,120]
[399961490,1766946159092,200.0,0.00030134,120]
[399961491,1766946159131,164.59997944,0.00030134,120]
[399961493,1766946159271,270.8631956,0.00030134,120]
[399961494,1766946159325,200.0,0.00030134,120]
[399961495,1766946159457,396.24040495,0.00030134,120]
[399961496,1766946159576,200.0,0.00030134,120]
[399961497,1766946159805,200.0,0.00030134,120]
[399961498,1766946160046,200.0,0.00030134,120]
[399961499,1766946160278,200.0,0.00030134,120]
[399961500,1766946160446,500.0,0.00030134,120]
[399961501,1766946160511,200.0,0.00030134,120]
[399961503,1766946160669,505.22548222,0.00030134,120]
[399961504,1766946160791,200.0,0.00030134,120]
[399961505,1766946161027,200.0,0.00030134,120]
[399961506,1766946161290,200.0,0.00030134,120]
[399961507,1766946161527,200.0,0.00030134,120]
[399961508,1766946161597,213.18142449,0.00030134,120]
[399961509,1766946161753,200.0,0.00030134,120]
[399961510,1766946162012,200.0,0.00030134,120]
[399961511,1766946162246,200.0,0.00030134,120]
[399961512,1766946162488,200.0,0.00030134,120]
[399961513,1766946162714,200.0,0.00030134,120]
[399961515,1766946162954,309.50769765,0.00030134,120]
[399961516,1766946163110,221.60487376,0.00030134,120]
[399961519,1766946164958,458.92333094,0.00030134,120]
[399961521,1766946165260,367.73812263,0.00030134,120]
[399961524,1766946165761,486.55020363,0.00030134,120]
[399961534,1766946167685,313.8466057,0.00030134,120]
[399961539,1766946168651,475.46034685,0.00030134,120]
[399961541,1766946169046,481.85676423,0.00030134,120]
[399961544,1766946169345,168.93132118,0.00030134,120]
[399961548,1766946170200,509.59193041,0.00030134,120]
[399961559,1766946174551,500.0,0.00030134,120]
[399961560,1766946174804,500.0,0.00030134,120]
[399961561,1766946175041,500.0,0.00030134,120]
[399961562,1766946175280,500.0,0.00030134,120]
[399961563,1766946175521,500.0,0.00030134,120]
[399961564,1766946175782,224.49576805,0.00030134,120]
[399961565,1766946175817,603.94365552,0.00030134,120]
[399961567,1766946176589,288.12598256,0.00030134,120]
[399961568,1766946177189,300.0,0.00016353,120]
[399961569,1766946177757,420.71285771,0.00030134,120]
[399961570,1766946179047,300.0,0.00016353,120]
[399961571,1766946179584,500.0,0.00030134,120]
[399961572,1766946179830,500.0,0.00030134,120]
[399961573,1766946180058,500.0,0.00030134,120]
[399961574,1766946180327,416.21146002,0.00030134,120]
[399961575,1766946180419,491.05218546,0.00030134,120]
[399961576,1766946180618,300.0,0.00016353,120]
[399961577,1766946181682,1139.08,0.00030134,120]
[399961578,1766946181900,500.0,0.00030134,120]
[399961579,1766946181939,1139.08,0.00030134,120]
[399961580,1766946182127,374.92630324,0.00030134,120]
[399961581,1766946182172,1139.08,0.00030134,120]
[399961582,1766946182337,300.0,0.00016353,120]
[399961583,1766946182404,1139.08,0.00030134,120]
[399961584,1766946182629,196.85299854,0.00030134,120]
[399961585,1766946182672,1139.08,0.00030134,120]
[399961586,1766946182907,1139.08,0.00030134,120]
[399961587,1766946183192,1139.08,0.00030134,120]
[399961588,1766946183427,1139.08,0.00030134,120]
[399961590,1766946183659,1139.08,0.00030134,120]
[399961593,1766946183890,1139.08,0.00030134,120]
[399961594,1766946183968,450.96817024,0.00030134,120]
[399961595,1766946184048,300.0,0.00016353,120]
[399961596,1766946184119,1139.08,0.00030134,120]
[399961597,1766946184358,1139.08,0.00030134,120]
[399961604,1766946195108,-300.0,0.00016353,120]
[399961605,1766946195144,-300.0,0.00016353,120]
[399961606,1766946195181,-300.0,0.00016353,120]
[399961607,1766946195217,-299.47,0.00016353,120]
[399961645,1766946334460,500.0,0.00024799,120]
[399961646,1766946334787,500.0,0.00024799,120]
[399961647,1766946334946,500.0,0.00024899,120]
[399961648,1766946335182,500.0,0.00024989,120]
[399961649,1766946335424,500.0,0.00024989,120]
[399961650,1766946335693,500.0,0.00024989,120]
[399961651,1766946335975,500.0,0.00024989,120]
[399961652,1766946336209,500.0,0.00024989,120]
[399961686,1766946379847,300.0,0.00016178,120]
[399961687,1766946381582,300.0,0.00016178,120]
[399961693,1766946383284,300.0,0.00016178,120]
[399961700,1766946385006,300.0,0.00016178,120]
[399961707,1766946386723,300.0,0.00016178,120]
[399961708,1766946388463,300.0,0.00016178,120]
[399961709,1766946390160,300.0,0.00016178,120]
[399961710,1766946391881,300.0,0.00016178,120]
[399961711,1766946393602,299.47,0.00016178,120]
[399961725,1766946447556,928.24,0.00024799,120]
[399961726,1766946447780,928.24,0.00024799,120]
[399961727,1766946448014,928.24,0.00024899,120]
[399961728,1766946448254,928.24,0.00024989,120]
[399961729,1766946448484,928.24,0.00024989,120]
[399961730,1766946448715,928.24,0.00024989,120]
[399961731,1766946448953,928.24,0.00024989,120]
[399961732,1766946449177,928.24,0.00024989,120]
[399961733,1766946449515,928.24,0.00024989,120]
[399961734,1766946449743,928.24,0.00024989,120]
[399961735,1766946449969,928.24,0.00024989,120]
[399961736,1766946450197,928.24,0.00024989,120]
[399961737,1766946450421,928.24,0.00024989,120]
[399961738,1766946450687,928.24,0.00024989,120]
[399961739,1766946450910,928.24,0.00024989,120]
[399961740,1766946451240,928.3449749,0.00024989,120]
[399961759,1766946511737,218.02819393,0.00025,120]
[399961761,1766946518430,228.20113178,0.0001536,120]
[399961762,1766946519479,160.80055141,0.0002739,120]
[399961765,1766946523944,200.0,0.000245,120]
[399961766,1766946524917,274.28077986,0.00025847,120]
[399961879,1766946610156,685.0,0.00028595,120]
[399961880,1766946626808,300.0,0.00015871,120]
[399961881,1766946627820,200.0,0.00027,120]
[399961882,1766946628130,218.97262,0.000279,120]
[399961883,1766946628527,300.0,0.00015871,120]
[399961909,1766946632143,-824.46619676,0.00017309,2]
[399961910,1766946632153,-150.0,0.00017654,2]
[399961911,1766946632162,-256.92937854,0.00017942,2]
[399961912,1766946632200,-3285.77208112,0.00017942,2]
[399961913,1766946632210,-300.0,0.00017999,2]
[399961914,1766946632221,-197.56598758,0.00017999,2]
[399961915,1766946632230,-500.0,0.00017999,2]
[399961916,1766946632239,-187.0211869,0.00017999,2]
[399961917,1766946632249,-41086.33634612,0.00018,2]
[399961918,1766946633673,179.0,0.00028572,120]
[399961919,1766946634863,319.58689,0.00027,120]
[399961920,1766946635188,319.58689,0.000279,120]
[399961930,1766946638141,-500.0,0.00017999,2]
[399961931,1766946638151,-273.34690431,0.00017999,2]
[399961932,1766946638161,-500.0,0.00017999,2]
[399961933,1766946638170,-500.0,0.00017999,2]
[399961934,1766946638179,-500.0,0.00017999,2]
[399961935,1766946638189,-500.0,0.00017999,2]
[399961936,1766946638198,-500.0,0.00017999,2]
[399961937,1766946638208,-500.0,0.00017999,2]
[399961938,1766946638217,-121.85303939,0.00017999,2]
[399961939,1766946638229,-227.43116647,0.00017999,2]
[399961940,1766946638245,-483.04152789,0.00017999,2]
[399961950,1766946640687,-16.95847211,0.00017999,2]
[399961951,1766946640698,-441.99232789,0.00018,2]
[399961952,1766946640716,-15256.94912138,0.00018,2]
[399962350,1766946644969,-1940.55086211,0.00018,2]
[399962352,1766946644983,-2439.32849533,0.00018,2]
[399962355,1766946644996,-1504.3502,0.00018,2]
[399962500,1766946646426,-2265.9225486,0.00018,2]
[399962502,1766946646440,-3854.12741463,0.00018,2]
[399962504,1766946646453,-9758.88295828,0.00018,2]
[399962506,1766946646465,-604.13494565,0.00018042,2]
[399962508,1766946646476,-194.16402095,0.00018042,2]
[399962511,1766946646487,-401.83922651,0.0001821,2]
[399962513,1766946646497,-722.58729711,0.0001821,2]
[399962515,1766946646506,-300.0,0.00018359,2]
[399962517,1766946646516,-300.0,0.00018359,2]
[399962519,1766946646526,-300.0,0.00018359,2]
[399962521,1766946646539,-300.0,0.00018359,2]
[399962522,1766946646549,-300.0,0.00018359,2]
[399962523,1766946646559,-300.0,0.00018359,2]
[399962524,1766946646572,-300.0,0.00018359,2]
[399962525,1766946646582,-300.0,0.00018359,2]
[399962526,1766946646594,-300.0,0.00018359,2]
[399962527,1766946646605,-300.0,0.00018359,2]
[399962529,1766946646615,-300.0,0.00018359,2]
[399962531,1766946646627,-300.0,0.00018359,2]
[399962533,1766946646637,-300.0,0.00018359,2]
[399962535,1766946646648,-300.0,0.00018359,2]
[399962537,1766946646659,-300.0,0.00018359,2]
[399962539,1766946646669,-600.0,0.00018359,2]
[399962542,1766946646680,-177.0,0.00018986,3]
[399962544,1766946646690,-200.14058179,0.00019169,2]
[399962546,1766946646702,-800.56232716,0.00019169,2]
[399962548,1766946646718,-1801.26523611,0.00019169,2]
[399962551,1766946646730,-3199.04705934,0.00019169,2]
[399962553,1766946646740,-417.02225109,0.00019169,2]
[399962555,1766946646751,-749.88941191,0.00019169,2]
[399962557,1766946646762,-18766.70226711,0.00019425,2]
[399962859,1766946766253,2000.0,0.00028483,120]
[399962860,1766946769445,216.691,0.00028483,120]
[399962861,1766946771424,475.0,0.00028483,120]
[399962862,1766946772580,475.0,0.00028483,120]
[399962863,1766946772869,475.0,0.00028483,120]
[399962864,1766946773180,475.0,0.00028483,120]
[399962865,1766946773488,475.0,0.00028483,120]
[399962866,1766946773771,402.833,0.00028483,120]
[399962908,1766946911034,675.0,0.00026538,120]
[399962909,1766946912553,675.0,0.00027865,120]
[399962910,1766946935125,177.0,0.00026606,120]
[399962911,1766946936584,177.0,0.00027936,120]
[399962914,1766947150541,180.0,0.00028483,120]
[399962915,1766947152844,180.0,0.00028483,120]
[399962916,1766947155197,180.0,0.00028483,120]
[399962917,1766947157555,180.0,0.00028483,120]
[399962918,1766947159902,180.0,0.00028483,120]
[399962919,1766947162203,180.0,0.00028483,120]
[399962920,1766947164535,180.0,0.00028483,120]
[399962921,1766947166956,180.0,0.00028483,120]
[399962922,1766947169273,180.0,0.00028483,120]
[399962923,1766947171553,180.0,0.00028483,120]
[399962924,1766947173911,159.60419312,0.00028483,120]
[399962926,1766947208192,338.0,0.00027442,120]
[399962927,1766947231850,177.0,0.00027558,120]
[399962928,1766947324838,217.73379924,0.00028483,120]
[399962929,1766947373122,500.0,0.00024799,120]
[399962930,1766947373364,500.0,0.00024899,120]
[399962931,1766947373639,500.0,0.00024899,120]
[399962932,1766947373890,425.92,0.00024899,120]
[399962949,1766947508113,169.0,0.00028106,120]
[399962953,1766947809256,169.0,0.00028154,120]
[399963000,1766947838352,-772.04249589,0.00013562,2]
[399963001,1766947838363,-1023.73570649,0.00013562,2]
[399963002,1766947838375,-526.80861021,0.00013562,2]
[399963003,1766947838387,-2420.1853518,0.00013562,2]
[399963004,1766947838399,-257.22783561,0.00013562,2]
[399963005,1766947838409,-98.58684098,0.0001363,2]
[399963006,1766947838425,-51.41315902,0.0001363,2]
[399963007,1766947838435,-356.24313,0.00013699,2]
[399963008,1766947838446,-277.81252558,0.0001563,2]
[399963009,1766947838456,-209.14321716,0.00016433,2]
[399963010,1766947838468,-90.85678284,0.00016433,2]
[399963011,1766947838478,-1200.0,0.00016433,2]
[399963012,1766947838489,-500.0,0.00016434,2]
[399963013,1766947838499,-500.0,0.00016434,2]
[399963014,1766947838508,-500.0,0.00016434,2]
[399963015,1766947838518,-500.0,0.00016434,2]
[399963016,1766947838527,-349.22935179,0.00016434,2]
[399963017,1766947838544,-150.77064821,0.00016434,2]
[399963018,1766947838554,-500.0,0.00016434,2]
[399963019,1766947838563,-500.0,0.00016434,2]
[399963020,1766947838573,-500.0,0.00016434,2]
[399963021,1766947838583,-500.0,0.00016434,2]
[399963022,1766947838593,-500.0,0.00016434,2]
[399963023,1766947838603,-500.0,0.00016434,2]
[399963024,1766947838613,-598.3107233,0.00016434,2]
[399963025,1766947838623,-500.0,0.00016434,2]
[399963026,1766947838633,-500.0,0.00016434,2]
[399963027,1766947838643,-500.0,0.00016434,2]
[399963028,1766947838654,-500.0,0.00016434,2]
[399963029,1766947838665,-584.92842058,0.00016434,2]
[399963030,1766947838675,-500.0,0.00016434,2]
[399963031,1766947838685,-500.0,0.00016434,2]
[399963032,1766947838695,-500.0,0.00016434,2]
[399963033,1766947838705,-500.0,0.00016434,2]
[399963034,1766947838715,-500.0,0.00016434,2]
[399963035,1766947838725,-500.0,0.00016434,2]
[399963036,1766947838735,-500.0,0.00016434,2]
[399963037,1766947838745,-500.0,0.00016434,2]
[399963038,1766947838755,-616.72052248,0.00016434,2]
[399963039,1766947838765,-500.0,0.00016434,2]
[399963040,1766947838776,-500.0,0.00016434,2]
[399963041,1766947838786,-500.0,0.00016434,2]
[399963042,1766947838796,-500.0,0.00016434,2]
[399963043,1766947838806,-483.10723299,0.00016434,2]
[399963044,1766947838816,-500.0,0.00016434,2]
[399963045,1766947838826,-257.00505021,0.00016434,2]
[399963046,1766947838837,-187.92221644,0.00016435,2]
[399963047,1766947838847,-751.68886574,0.00016435,2]
[399963048,1766947838858,-1691.29994792,0.00016435,2]
[399963049,1766947838871,-3003.7487075,0.00016435,2]
[399963050,1766947838882,-300.0,0.00017204,2]
[399963051,1766947838892,-19064.13429771,0.00017208,2]
[399963052,1766947838907,-12863.22931439,0.00017208,2]
[399963053,1766947838918,-162.92173802,0.00017855,2]
[399963054,1766947838930,-420.0,0.00017959,2]
[399963055,1766947838940,-529.48227493,0.00018042,2]
[399963056,1766947838951,-500.0,0.00018209,2]
[399963057,1766947838960,-507.63652699,0.00018209,2]
[399963058,1766947838970,-500.0,0.00018315,2]
[399963059,1766947838980,-500.0,0.00018316,2]
[399963060,1766947838990,-525.603904,0.00018316,2]
[399963061,1766947839001,-463.3914124,0.00018321,2]
[399963062,1766947839011,-503.2525761,0.00018321,2]
[399963063,1766947839021,-300.0,0.00018685,2]
[399963064,1766947839032,-300.0,0.00018685,2]
[399963065,1766947839042,-243.32878403,0.00018685,2]
[399963684,1766947846595,-56.67121597,0.00018685,2]
[399963686,1766947846605,-300.0,0.00018685,2]
[399963688,1766947846615,-300.0,0.00018685,2]
[399963690,1766947846624,-300.0,0.00018685,2]
[399963692,1766947846634,-300.0,0.00018685,2]
[399963694,1766947846644,-300.0,0.00018685,2]
[399963696,1766947846654,-300.0,0.00018685,2]
[399963698,1766947846664,-300.0,0.00018685,2]
[399963700,1766947846674,-300.0,0.00018685,2]
[399963702,1766947846684,-300.0,0.00018685,2]
[399963704,1766947846693,-300.0,0.00018685,2]
[399963706,1766947846703,-300.0,0.00018685,2]
[399963708,1766947846713,-300.0,0.00018685,2]
[399963710,1766947846723,-600.0,0.00018685,2]
[399963712,1766947846733,-159.0,0.00018959,3]
[399963714,1766947846743,-209.54783005,0.00018992,2]
[399963899,1766948107079,169.0,0.00027369,120]
[399963900,1766948108392,169.0,0.00028737,120]
[399963901,1766948129449,177.0,0.00027328,120]
[399963941,1766949032638,-1125.97591378,0.00015215,2]
[399963944,1766949032652,-1509.37145761,0.00015215,2]
[399963946,1766949032665,-2364.65262861,0.00015215,2]
[399963948,1766949032674,-300.0,0.00015227,2]
[399963950,1766949032683,-500.0,0.00015228,2]
[399963952,1766949032694,-500.0,0.00015228,2]
[399963954,1766949032704,-500.0,0.00015228,2]
[399963956,1766949032714,-500.0,0.00015228,2]
[399963958,1766949032723,-456.30777587,0.00015228,2]
[399963960,1766949032733,-228.20774557,0.00015228,2]
[399963962,1766949032743,-467.92723132,0.00015228,2]
[399963964,1766949032752,-500.0,0.00015228,2]
[399963965,1766949032762,-500.0,0.00015228,2]
[399963967,1766949032771,-500.0,0.00015228,2]
[399963969,1766949032780,-461.29400399,0.00015228,2]
[399963971,1766949032789,-500.0,0.00015228,2]
[399963973,1766949032798,-500.0,0.00015228,2]
[399963975,1766949032807,-500.0,0.00015228,2]
[399963977,1766949032816,-500.0,0.00015228,2]
[399963978,1766949032825,-9933.1346008,0.00015228,2]
[399963981,1766949032837,-427.395,0.00015228,2]
[399963983,1766949032848,-280.32,0.00015228,2]
[399963985,1766949032864,-2177.89216173,0.00015228,2]
[399963988,1766949032876,-7818.03330606,0.00015228,2]
[399964029,1766949038674,-500.0,0.00015227,2]
[399964030,1766949038683,-500.0,0.00015227,2]
[399964031,1766949038693,-274.43999481,0.00015227,2]
[399964032,1766949038726,-225.56000519,0.00015227,2]
[399964033,1766949038735,-157.71895956,0.00015227,2]
[399964034,1766949038744,-500.0,0.00015227,2]
[399964035,1766949038753,-500.0,0.00015227,2]
[399964036,1766949038762,-500.0,0.00015227,2]
[399964037,1766949038772,-500.0,0.00015227,2]
[399964038,1766949038781,-500.0,0.00015227,2]
[399964039,1766949038791,-29363.22493141,0.00015228,2]
[399964041,1766949038801,-1181.77724132,0.00015229,2]
[399964042,1766949038816,-3068.87568946,0.00015229,2]
[399964045,1766949038836,-403.29990203,0.00015227,2]
[399964047,1766949038848,-96.70009797,0.00015227,2]
[399964049,1766949038857,-441.80664933,0.00015229,2]
[399964274,1766949040844,-500.0,0.00015227,2]
[399964277,1766949040857,-500.0,0.00015227,2]
[399964279,1766949040866,-473.19474389,0.00015227,2]
[399964281,1766949040880,-26.80525611,0.00015227,2]
[399964283,1766949040890,-500.0,0.00015227,2]
[399964285,1766949040901,-500.0,0.00015227,2]
[399964286,1766949040910,-299.85985338,0.00015227,2]
[399964289,1766949040923,-200.14014662,0.00015227,2]
[399964291,1766949040932,-500.0,0.00015227,2]
[399964293,1766949040942,-500.0,0.00015227,2]
[399964296,1766949040952,-500.0,0.00015227,2]
[399964298,1766949040963,-7231.45985338,0.00015229,2]
[399964631,1766949045108,-414.32248862,0.0001513,2]
[399964632,1766949045895,-3267.26789012,0.0001513,2]
[399964633,1766949045905,-235.06902301,0.00015229,2]
[399964634,1766949045917,-150.0,0.00015368,2]
[399964635,1766949045928,-171.607459,0.00015446,2]
[399964636,1766949045940,-355.55498912,0.00015469,2]
[399964637,1766949045952,-2260.41127669,0.00015469,2]
[399964638,1766949045962,-549.48814261,0.00015469,2]
[399964639,1766949045972,-150.0,0.00016151,2]
[399964641,1766949045981,-530.60390523,0.00016283,2]
[399964642,1766949045991,-2122.41562092,0.00016283,2]
[399964643,1766949046001,-150.0,0.00016288,2]
[399964644,1766949046011,-162.92173802,0.00016329,2]
[399964645,1766949046021,-269.77339454,0.00016425,2]
[399964646,1766949046032,-500.0,0.00016429,2]
[399964647,1766949046043,-337.34169357,0.00016429,2]
[399964648,1766949046052,-500.0,0.00016429,2]
[399964649,1766949046062,-500.0,0.00016429,2]
[399964650,1766949046073,-500.0,0.00016429,2]
[399964651,1766949046083,-500.0,0.00016429,2]
[399964652,1766949046093,-420.0,0.00016662,2]
[399964653,1766949046103,-500.0,0.0001676,2]
[399964654,1766949046114,-300.0,0.00016761,2]
[399964655,1766949046124,-300.0,0.00016761,2]
[399964656,1766949046134,-300.0,0.00016761,2]
[399964657,1766949046143,-300.0,0.00016761,2]
[399964658,1766949046153,-156.32986902,0.00016761,2]
[399964659,1766949046165,-143.67013098,0.00016761,2]
[399964660,1766949046175,-300.0,0.00016761,2]
[399964661,1766949046187,-188.99220703,0.00016761,2]
[399964662,1766949046200,-111.00779297,0.00016761,2]
[399964663,1766949046209,-300.0,0.00016761,2]
[399964664,1766949046219,-300.0,0.00016761,2]
[399964665,1766949046229,-300.0,0.00016761,2]
[399964666,1766949046238,-300.0,0.00016761,2]
[399964667,1766949046248,-300.0,0.00016761,2]
[399964668,1766949046258,-300.0,0.00016761,2]
[399964669,1766949046267,-300.0,0.00016761,2]
[399964670,1766949046277,-300.0,0.00016761,2]
[399964671,1766949046287,-600.0,0.00016762,2]
[399964672,1766949046298,-500.0,0.00017206,2]
[399964673,1766949046308,-500.0,0.00017206,2]
[399964674,1766949046317,-500.0,0.00017206,2]
[399964675,1766949046328,-500.0,0.00017206,2]
[399964676,1766949046338,-500.0,0.00017206,2]
[399964677,1766949046349,-500.0,0.00017206,2]
[399964678,1766949046359,-500.0,0.00017207,2]
[399964679,1766949046370,-500.0,0.00017207,2]
[399964680,1766949046380,-500.0,0.00017207,2]
[399964682,1766949046390,-222.86,0.00017256,3]
[399964684,1766949046400,-500.0,0.00017265,2]
[399964685,1766949046410,-500.0,0.00017265,2]
[399964686,1766949046419,-347.5435593,0.00017266,2]